Cogmind - Beta 12 @@@ ROGUE MODE // 2023.05.09 @ 05:34:04 Player: Zirov Result: Self-destructed Performance ------------- Evolutions (1) 500 Regions Visited (2) 400 Robots Destroyed (10) 50 Value Destroyed (242) 242 Prototype IDs (0) 0 Alien Tech Used (0) 0 Bonus (0) 0 TOTAL SCORE: 1192 Bonus ------- None Cogmind --------- Core Integrity 190/400 Matter 268/300 Energy 100/100 System Corruption 2% Temperature Cool (0) Movement Core (400) Ox7 Location -9/Materials Parts ------- > --- POWER (1) -------- (None) > --- PROPULSION (2) --- (None) > --- UTILITY (3) ------ Heat Sink Large Storage Unit Visual Processing Unit > --- WEAPON (3) ------- Light Assault Rifle Light Assault Rifle > --- INVENTORY (15) --- Light Ion Engine Light Treads Medium Storage Unit Light Armor Plating Peak State ------------ > --- POWER ------------ Ion Engine > --- PROPULSION ------- Wheel Wheel > --- UTILITY ---------- Heat Sink Large Storage Unit Visual Processing Unit > --- WEAPON ----------- Assault Rifle Light Assault Rifle Heavy Assault Rifle > --- INVENTORY -------- Light Ion Engine Wheel Medium Storage Unit Light Armor Plating Light Assault Rifle [Rating: 11] Favorites ----------- Power Ion Engine Engine Ion Engine Propulsion Wheel Wheel Wheel Utility Visual Processing Unit Device Heat Sink Storage Large Storage Unit Processor Visual Processing Unit Weapon Light Assault Rifle Ballistic Gun Light Assault Rifle Build | -11 -10 -9 ------- Run | Jun Mat Mat Slots Evolved 2 | . . 2 Power . | . . . Propulsion . | . . . Utility 1 | . . 1 Weapon 1 | . . 1 Parts Attached 14 | 6 3 5 Power 1 | 1 . . Engine 1 | 1 . . Core . | . . . Reactor . | . . . Propulsion 3 | 2 . 1 Treads . | . . . Leg . | . . . Wheel 3 | 2 . 1 Hover . | . . . Flight . | . . . Utility 5 | 1 3 1 Device 1 | . . 1 Storage 3 | 1 2 . Processor 1 | . 1 . Hackware . | . . . Protection . | . . . Artifact . | . . . Weapon 5 | 2 . 3 Energy Gun . | . . . Energy Cannon . | . . . Ballistic Gun 5 | 2 . 3 Ballistic Cannon . | . . . Launcher . | . . . Special Weapon . | . . . Impact Weapon . | . . . Slashing Weapon . | . . . Piercing Weapon . | . . . Special Melee Weapon . | . . . Unidentified Prototypes . | . . . Parts Lost 6 | . . 6 Power 1 | . . 1 Propulsion 3 | . . 3 Utility . | . . . Weapon 2 | . . 2 Highest Loss Streak 6 | . . 6 To Critical Strikes . | . . . Average Slot Usage (%) 90 | . 95 85 Engine 12 | . 14 10 Wheel 23 | . 28 18 Device 2 | . . 5 Storage 12 | . 14 11 Processor 10 | . 9 11 Ballistic Gun 29 | . 28 30 Naked Turns . | . . . Heaviest Build 32 | 13 28 32 Greatest Support 20 | 20 20 20 Greatest Overweight (x) 7 | . 1 7 Average Overweight (x) . | . . 1 Largest Inventory Capacity 15 | 8 15 15 Average Capacity 11 | 5 9 15 Most Carried 6 | 2 4 6 Average Carried 2 | . 2 3 Final Capacity 15 | 8 15 15 Final Carried 4 | 2 4 4 Class Distribution -------------------- 80% | Mutant 19% | Skirmisher Dominant Class ---------------- Mutant | -10/Materials Mutant | -9/Materials Resources | -11 -10 -9 ----------- Run | Jun Mat Mat Matter Collected 384 | 197 131 56 Remotely . | . . . Salvage Created 299 | . 80 219 Parts 24 | . 4 20 Haulers Intercepted . | . . . Recyclers Shooed 2 | . 2 . Parts Field Recycled . | . . . Retrieved Matter . | . . . Parts Self-Destructed . | . . . Prevented . | . . . Kills | -11 -10 -9 ------- Run | Jun Mat Mat Combat Hostiles Destroyed 8 | . . 8 Guns 5 | . . 5 AOE 3 | . . 3 Classes Destroyed 5 | . 2 3 Recycler 1 | . 1 . Watcher 1 | . 1 . Swarmer 4 | . . 4 Grunt 3 | . . 3 Sentry 1 | . . 1 Best Kill Streak 3 | . 1 3 Combat Bots Only 3 | . . 3 Max Kills in Single Turn 3 | . 1 3 Gunslinging . | . . . Exploded 3 | . . 3 Melee . | . . . Uniques/NPCs Destroyed . | . . . Combat | -11 -10 -9 -------- Run | Jun Mat Mat Damage Taken 774 | . . 774 Core 210 | . . 210 Absorbed by Shields . | . . . Core Remaining (%) 100 | 100 100 . Volleys Fired 24 | . 12 12 Largest 3 | . 2 3 Hottest 63 | . 40 63 Shots Fired 56 | . 24 32 Gun 56 | . 24 32 Cannon . | . . . Launcher . | . . . Special . | . . . Kinetic 56 | . 24 32 Thermal . | . . . Explosive . | . . . Electromagnetic . | . . . Robot Hit Streak 13 | . 2 13 Robot Miss Streak 6 | . 6 4 Penetration Max . | . . . Secondary Targets 1 | . . 1 Max Gunslinging Chain 1 | . . 1 Shots Hit Robots 30 | . 10 20 Core Hits 14 | . 3 11 Critical Kills 1 | . 1 . Critical Parts Destroyed . | . . . Critical Strikes 1 | . 1 . Destroy 1 | . 1 . Melee Attacks . | . . . Impact . | . . . Slashing . | . . . Piercing . | . . . Sneak Attacks . | . . . Combat Hostiles . | . . . Follow-up Attacks . | . . . Damage Inflicted 620 | . 107 513 Guns 310 | . 107 203 Cannons . | . . . Explosions 310 | . . 310 Melee . | . . . Ramming . | . . . Kinetic 310 | . 107 203 Thermal 310 | . . 310 Explosive . | . . . Electromagnetic . | . . . Impact . | . . . Slashing . | . . . Piercing . | . . . Highest Corruption 2 | . . 2 Average Corruption 2 | . . 2 Corruption Purged . | . . . Corruption Blocked . | . . . Effects 1 | . . 1 Energy Discharges 1 | . . 1 Overload Shots . | . . . Overflow Damage 29 | . . 29 Projectiles . | . . . Explosions 29 | . . 29 Melee . | . . . Knockbacks . | . . . Impact . | . . . Kinetic . | . . . Secondary . | . . . Self-Inflicted Damage 141 | . . 141 Shots 2 | . . 2 Rammed . | . . . Targets Rammed . | . . . Kicked . | . . . Crushed . | . . . Highest Temperature 41 | . . 41 Average Temperature 22 | . . 22 Received Heat Transfer 261 | . . 261 Siege Activations . | . . . Robots Corrupted . | . . . Combat Hostiles . | . . . Parts Fried . | . . . Impact Corruptions . | . . . Robots Melted . | . . . Combat Hostiles . | . . . Parts Melted . | . . . Heat Transferred 150 | . . 150 Parts Sabotaged . | . . . Parts Stolen . | . . . Parts Stripped . | . . . Power Chain Reactions . | . . . Missiles Intercepted . | . . . Alert | -11 -10 -9 ------- Run | Jun Mat Mat Peak Influence 224 | . 27 224 Initial 11 | . . 11 Average 38 | . 22 70 Maximum Alert Level 1 | . . 1 Low Security (%) 98 | 100 100 96 Level 1 1 | . . 3 Level 2 . | . . . Level 3 . | . . . Level 4 . | . . . Level 5 . | . . . High Security . | . . . Max Security . | . . . Squads Dispatched . | . . . Investigation . | . . . Extermination . | . . . Reinforcement . | . . . Assault . | . . . Garrison . | . . . Intercept . | . . . Searches Triggered . | . . . Construction Impeded . | . . . Haulers Reinforced . | . . . Active Scanning Responses . | . . . Cargo Convoy Interrupts . | . . . Stealth | -11 -10 -9 --------- Run | Jun Mat Mat Distress Signals . | . . . Communications Jammed . | . . . Distress Signals . | . . . Times Spotted 11 | . 1 10 Peak Tracking Total 10 | . 1 10 Tactical Retreats . | . . . Traps | -11 -10 -9 ------- Run | Jun Mat Mat Traps Triggered 1 | . . 1 Indirectly . | . . . Trap Hack Attempts . | . . . Triggered . | . . . Disarmed . | . . . Reprogrammed . | . . . Reused . | . . . Traps Extracted . | . . . Installed . | . . . Triggered . | . . . Machines | -11 -10 -9 ---------- Run | Jun Mat Mat Machines Disabled 2 | . . 2 Max in Single Turn 2 | . . 2 Machines Repaired . | . . . Machines Sabotaged . | . . . Overloaded Fab Kills . | . . . Hacking | -11 -10 -9 --------- Run | Jun Mat Mat Machines Accessed . | . . . Terminals . | . . . Fabricators . | . . . Repair Stations . | . . . Recycling Units . | . . . Scanalyzers . | . . . Garrison Access . | . . . Total Hacks . | . . . Successful . | . . . Failed . | . . . Catastrophic . | . . . Database Lockouts . | . . . Manual . | . . . Terminals . | . . . Fabricators . | . . . Repair Stations . | . . . Recycling Units . | . . . Scanalyzers . | . . . Garrison Access . | . . . Terminal Hacks . | . . . Fabricator Hacks . | . . . Repair Station Hacks . | . . . Recycling Unit Hacks . | . . . Scanalyzer . | . . . Garrison Access Hacks . | . . . Unauthorized Hacks . | . . . Terminals . | . . . Fabricators . | . . . Repair Stations . | . . . Recycling Units . | . . . Scanalyzers . | . . . Garrison Access . | . . . Data Cores Recovered . | . . . Used . | . . . Hacking Detections . | . . . Full Trace Events . | . . . Feedback Events . | . . . Feedback Blocked . | . . . Robot Schematics Acquired . | . . . Robots Built . | . . . Authchips . | . . . Time . | . . . Total Robot Build Rating . | . . . Part Schematics Acquired . | . . . Parts Built . | . . . Authchips . | . . . Time . | . . . Total Part Build Rating . | . . . Parts Repaired . | . . . Time . | . . . Parts Recycled . | . . . Recycled Matter . | . . . Retrieved Matter . | . . . Retrieved Components . | . . . Parts Scanalyzed . | . . . Part Schematics Acquired . | . . . Parts Damaged . | . . . Bothacking | -11 -10 -9 ------------ Run | Jun Mat Mat Used RIF Installer . | . . . Robots Hacked . | . . . Non-combat . | . . . Combat . | . . . Robot Hacks Applied . | . . . Relay Couplers Released . | . . . Fabnet Peak Effective % . | . . . Robots Rewired . | . . . Allies Hacked . | . . . Hacks Repelled . | . . . Allies | -11 -10 -9 -------- Run | Jun Mat Mat Total Allies . | . . . Largest Group . | . . . Highest-Rated Group . | . . . Highest-Rated Ally . | . . . Total Orders . | . . . Ally Attacks . | . . . Total Damage . | . . . Kills . | . . . Allies Corrupted . | . . . Allies Melted . | . . . Intel | -11 -10 -9 ------- Run | Jun Mat Mat Robot Analysis Total . | . . . Derelict Logs Recovered . | . . . Drone Launches . | . . . Drone Recoveries . | . . . Exploration | -11 -10 -9 ------------- Run | Jun Mat Mat Turns Passed 366 | 54 164 148 Spaces Moved 303 | 58 147 98 Core 10 | 9 . 1 Treads . | . . . Legs . | . . . Wheels 293 | 49 147 97 Hover . | . . . Flight . | . . . Fastest Speed 50 | 50 80 95 Average Speed 87 | 75 83 102 Slowest Speed 400 | 80 95 400 Overloaded Moves . | . . . Propulsion Burnouts . | . . . Robots Hopped . | . . . Cave-ins Triggered . | . . . Exploration Rate (%) 12 | 3 21 12 Regions Visited 2 Branch Regions . Pre-discovered Areas . | . . . Known Exits Taken . | . . . Unknown Exits Taken 2 | 1 1 . Scrap Searched . | . . . Spaces Dug . | . . . Terrain Destroyed 53 | . . 53 Melee . | . . . Projectile . | . . . AOE 53 | . . 53 Terrain Rammed . | . . . Walls Destroyed . | . . . Machines Disabled . | . . . Actions | -11 -10 -9 --------- Run | Jun Mat Mat Total 352 | 65 165 122 Wait 6 | . 2 4 Move 301 | 57 146 98 Hop . | . . . Pick Up 6 | 2 1 3 Fast Attach 7 | 6 1 . Attach 4 | . . 4 Detach . | . . . Swap 3 | . 2 1 Drop 1 | . 1 . Fire 24 | . 12 12 Melee . | . . . Ram . | . . . Kick . | . . . Crush . | . . . Escape Stasis . | . . . Rewire . | . . . Trap . | . . . Miscellaneous . | . . . Route ------- -11/Junkyard -10/Materials -9/Materials (discovered 1 exit: [*Min]) History --------- Turn | Location | Event 4 | -11/Junkyard | Discovered new exit (range 16) 55 | -11/Junkyard | Entered Materials 142 | -10/Materials | Discovered new exit (range 18) 219 | -10/Materials | Entered another Materials area 219 | -9/Materials | Evolved 2 slots: Utility x1, Weapon x1 293 | -9/Materials | Discovered new exit (range 14) 363 | -9/Materials | Core integrity fell below 50% 367 | -9/Materials | Self-destructed Last Messages --------------- 00307_ Wheel destroyed. 00310_ R-06 Scavenger collects Lgt. Assault Rifle. 00313_ R-06 Scavenger collects Flight Unit. 00313_ Acquired 11 matter. 00317_ Acquired Lgt. Treads. 00319_ Wheel destroyed. 00325_ S-10 Pest destroyed. 00327_ Assault Rifle destroyed. 00329_ Critical hit (Burn: +37). 00332_ Hvy. Assault Rifle destroyed. 00339_ System corrupted: Energy discharge (-72). 00358_ Ion Engine destroyed. 00361_ Wheel destroyed. 00362_ Fusion Modulator explodes. 00362_ G-34 Mercenary destroyed. 00362_ G-47 Trooper destroyed. 00362_ Destroyed Sml. Laser. 00362_ G-34 Mercenary destroyed. 00362_ Fusion Modulator explodes. 00362_ U-05 Engineer builds a Wall. Map ----- +----------------------------------------------------+ | ???????????????????# ####????????? | | ???????????????????# #???????????? | | ???????????????????# #???????????? | | ???????????????????# #???????????? | | ???????????????????# #???????????? | | ???????????????????# #???????????? | | ??????????########## #???????????? | | ??????????# # #???????????? | | ??????????# """ # #???????????? | | ??????????# """ + #???????????? | | ??????????# """ # ##########??? | | ??????????# """ # # #??? | | ??????????# """ # # """ #??? | | ??????????# # # """ #??? | | ??????????# # # """ #??? | | ??????????# # # #??? | | ????###???########## + """ #??? | | ##### ############## # """ #??? | | =%+ Y # """ #??? | | *##########u + #??? | | #?????#;;;;; ;#######??? | | #????##; ; #??????? | | %% " "" #????# ; ; #??????? | | *= "R"" #????##; %; #??????? | | [ """ #????# ; ; #??????? | | #????# ; @; #??????? | | ##########????# ; ; #??????? | | ??????????????##; ; #??????? | | ???????????????#; ; #??????? | | ???????????????###; ;;;; #??????? | | ?????????????????#### # ###??????? | | ????????????????????#######????????? | | ???????????????????????????????????? | | ???????????????????????????????????? | | ???????????????????????????????????? | | ???????????????????????????????????? | | ???????????????????????????????????? | | ???????????????????????????????????? | | ???????????????????????????????????? | | ???????????????????????????????????? | | ???????????????????????????????????? | | ???????????????????????????????????? | | ???????????????????????????????????? | | ???????????????????????????????????? | | ???????????????????????????????????? | | ???????????????????????????????????? | | ???????????????????????????????????? | | ???????????????????????????????????? | | ???????????????????????????????????? | | ???????????????????????????????????? | +----------------------------------------------------+ Best States ------------- Heat Dissipation 38 Energy Generation 10 Energy Capacity 250 Matter Stores 300 Matter Capacity 300 Sight Range 18 Terrain Scan Density 10 Evasion (%) 44 Item Schematics ----------------- None Robot Schematics ------------------ None Fabricated ------------ Nothing Alien Tech Used ----------------- None Achievements -------------- None Challenges ------------ None Game ------ Seed ChipShieldMicroactuators Manual? 0 Play Time 00:03:37 Cumulative 77.4 hours Start 2023.05.09 @ 04:22:48 End 2023.05.09 @ 05:34:04 Sessions 3 Manual Loads 0 Difficulty Rogue Special Mode None Game No. 84 Rogue 84 Adventurer 0 Explorer 0 Win Type - Total 0 Types 0/0/0/0/0/0/0/0/0 Lore% 29 Gallery% 36 Achievement% 28 Wizard Run 0 Options --------- ASCII 1 Keyboard 1 Movement Numpad Keybinds 0 Fullscreen 1 Font 18/SmallcapsGlow Map View 76x50 Tactical HUD 1 Map Filters NONE Filters NONE Steam 1 RUN: bc62148e-8eee-4a8a-be44-56cbc5ecaee1